bitfinex-derivatives/quotes_BTCF0:USTF0_20240815
["timestamp","ask_amount","ask_price","bid_price","bid_amount"]
[1723759471069,0.002,57467.0,57462.0,0.09448399]
[1723759471271,0.001,57467.0,57462.0,0.043496]
[1723759471576,0.044493,57467.0,57462.0,0.043496]
[1723759471772,0.045493,57467.0,57462.0,0.043496]
[1723759471977,0.045493,57467.0,57461.0,0.41178799]
[1723759471978,0.043493,57466.0,57461.0,0.3608]
[1723759472179,0.002,57467.0,57461.0,0.3608]
[1723759472383,0.043495,57463.0,57461.0,0.3608]
[1723759472673,0.00017091,57462.0,57461.0,0.3608]
[1723759473371,0.00017091,57462.0,57459.0,0.16807461]
[1723759474274,0.00117091,57462.0,57459.0,0.16807461]
[1723759474870,0.00217091,57462.0,57459.0,0.16807461]
[1723759475378,0.00217091,57462.0,57459.0,0.52887461]
[1723759475781,0.00117091,57462.0,57459.0,0.52887461]
[1723759475967,0.00217091,57462.0,57459.0,0.52887461]
[1723759477970,0.00217091,57462.0,57461.0,0.043497]
[1723759479678,0.00217091,57462.0,57461.0,0.965577]
[1723759480180,1e-08,57462.0,57461.0,0.965577]
[1723759480580,0.00100001,57462.0,57461.0,0.965577]
[1723759480981,0.01120946,57470.0,57464.0,0.043494]
[1723759481276,7.247e-05,57469.0,57466.0,0.3608]
[1723759482975,7.247e-05,57469.0,57465.0,0.043494]
[1723759483176,0.00107247,57469.0,57466.0,0.001]
[1723759484074,0.00207247,57469.0,57466.0,0.004]
[1723759484679,0.04556347,57469.0,57466.0,0.004]
[1723759488991,0.04556347,57469.0,57466.0,0.01504071]
[1723759489186,0.04556347,57469.0,57466.0,0.0660287]
[1723759489385,0.00207247,57469.0,57467.0,0.05098799]
[1723759489586,0.01109621,57472.0,57468.0,0.404291]
[1723759489786,0.00026098,57475.0,57469.0,0.05097548]
[1723759489993,0.00026098,57475.0,57468.0,0.45526648]
[1723759490692,0.001,57469.0,57468.0,0.45526648]
[1723759490898,0.001,57469.0,57468.0,0.404291]
[1723759491279,0.001,57469.0,57468.0,0.45526648]
[1723759491894,0.043489,57472.0,57468.0,0.45926648]
[1723759491895,0.044489,57472.0,57468.0,0.45926648]
[1723759492597,0.043489,57472.0,57469.0,0.05097548]
[1723759493183,0.043489,57472.0,57468.0,0.408291]
[1723759493184,0.044489,57472.0,57470.0,0.05097548]
[1723759493889,0.01147045,57475.0,57470.0,0.09446548]
[1723759494091,0.001,57472.0,57470.0,0.09446548]
[1723759494790,0.002,57472.0,57471.0,0.05097548]
[1723759494995,0.10382204,57490.0,57471.0,0.3608]
[1723759495203,0.3212,57498.0,57489.0,0.043475]
[1723759495204,0.043469,57498.0,57489.0,0.043475]
[1723759495394,0.043471,57495.0,57487.0,0.0509976]
[1723759495588,0.043471,57495.0,57488.0,0.0509976]
[1723759495789,0.01121612,57498.0,57493.0,0.043472]
[1723759495983,0.4022,57504.0,57493.0,0.043472]
[1723759496193,0.00026098,57501.0,57493.0,0.043472]
[1723759496697,0.043469,57498.0,57493.0,0.043472]
[1723759497292,0.009,57495.0,57493.0,0.043472]
[1723759498793,0.028,57498.0,57494.0,0.043472]
[1723759499598,0.03900079,57498.0,57494.0,0.043472]
[1723759499893,0.014,57495.0,57494.0,0.043472]
[1723759500194,0.028,57495.0,57494.0,0.043472]
[1723759500793,0.014,57495.0,57494.0,0.044472]
[1723759500994,0.028,57498.0,57497.0,0.043469]
[1723759501198,0.028,57498.0,57497.0,0.404269]
[1723759501993,0.014,57498.0,57497.0,0.404269]
[1723759502800,0.01119185,57501.0,57500.0,0.043467]
[1723759503893,0.01119185,57501.0,57500.0,0.565187]
[1723759504195,0.01719185,57501.0,57500.0,0.566187]
[1723759504688,0.02219185,57501.0,57500.0,0.566187]
[1723759504892,0.02219185,57501.0,57500.0,0.926987]
[1723759506399,0.01126098,57501.0,57500.0,0.926987]
[1723759507301,0.01126098,57501.0,57500.0,0.405267]
[1723759507807,0.05472698,57501.0,57500.0,0.001]
[1723759508191,0.01126098,57501.0,57500.0,0.3618]
[1723759508398,0.01126098,57501.0,57500.0,0.405267]
[1723759509199,0.01126098,57501.0,57500.0,0.926987]
[1723759509596,0.01126098,57501.0,57500.0,0.405267]
[1723759512698,0.05472698,57501.0,57500.0,0.3618]
[1723759514399,0.043474,57491.0,57490.0,0.00026098]
[1723759516008,0.044474,57491.0,57490.0,0.00626098]
[1723759516210,0.002,57491.0,57490.0,0.01226098]
[1723759516707,0.002,57491.0,57490.0,0.05573598]
[1723759517098,0.004,57491.0,57490.0,0.04973598]
[1723759517305,0.006,57491.0,57490.0,0.96557598]
[1723759517601,0.006,57491.0,57490.0,0.04373598]
[1723759517806,0.003,57491.0,57490.0,0.04873598]
[1723759518711,0.01430197,57491.0,57490.0,0.00526098]
[1723759519018,0.046474,57491.0,57490.0,0.00526098]
[1723759519311,0.046474,57491.0,57490.0,0.00426098]
[1723759519908,0.043474,57491.0,57490.0,0.00426098]
[1723759520109,0.043474,57491.0,57490.0,0.00826098]
[1723759520606,0.043474,57491.0,57490.0,0.00426098]
[1723759520607,0.407274,57491.0,57490.0,0.00426098]
[1723759520806,1.332114,57491.0,57490.0,0.00026098]
[1723759521511,0.043478,57485.0,57483.0,0.3608]
[1723759522010,0.043475,57490.0,57484.0,0.043479]
[1723759522311,0.009,57491.0,57490.0,0.001]
[1723759522633,0.009,57491.0,57490.0,0.044475]
[1723759523408,0.018,57491.0,57490.0,0.045475]
[1723759523710,0.018,57491.0,57490.0,0.001]
[1723759523711,0.577314,57491.0,57490.0,0.001]
[1723759523910,0.043478,57486.0,57483.0,0.3648]
[1723759524411,0.1564,57490.0,57483.0,0.3608]
[1723759524917,0.3608,57489.0,57483.0,0.3608]
[1723759525302,0.043479,57484.0,57483.0,0.3608]
[1723759527408,0.047479,57484.0,57483.0,0.3608]
[1723759527608,0.051479,57484.0,57483.0,0.3608]
[1723759527815,0.043481,57482.0,57474.0,0.043486]
[1723759528009,0.3688,57484.0,57474.0,0.043486]
[1723759528010,0.043482,57480.0,57474.0,0.043486]
[1723759529613,0.3628,57484.0,57474.0,0.043486]
[1723759529821,0.043483,57479.0,57474.0,0.043486]
[1723759530018,0.043484,57478.0,57474.0,0.043486]
[1723759530815,0.001,57480.0,57475.0,0.043486]
[1723759531116,0.001,57480.0,57479.0,0.043483]
[1723759531512,0.043478,57485.0,57480.0,0.043482]
[1723759532813,0.36106098,57489.0,57477.0,0.3608]
[1723759533011,0.40106098,57489.0,57477.0,0.3608]
[1723759533216,0.043483,57479.0,57477.0,0.3608]
[1723759533412,0.043484,57478.0,57477.0,0.3608]
[1723759534222,0.043484,57478.0,57477.0,0.3638]
[1723759534922,0.043484,57478.0,57477.0,0.3668]
[1723759535514,0.043484,57478.0,57473.0,0.043487]
[1723759535515,1.24356,57478.0,57466.0,0.043492]
[1723759535712,0.3275,57477.0,57466.0,0.043492]
[1723759535923,0.043488,57472.0,57467.0,0.043492]
[1723759536116,0.203985,57477.0,57466.0,0.3608]
[1723759536313,0.043485,57476.0,57469.0,0.04349]
[1723759536514,0.1605,57477.0,57469.0,0.04349]
[1723759536515,0.043487,57474.0,57472.0,0.3608]
[1723759536712,0.043487,57473.0,57472.0,0.3608]
[1723759537030,0.043488,57472.0,57471.0,0.3608]
[1723759538424,0.044488,57472.0,57471.0,0.3698]
[1723759539515,0.044488,57472.0,57471.0,0.009]
[1723759539721,0.044488,57472.0,57471.0,0.014]
[1723759539722,0.045488,57472.0,57471.0,0.014]
[1723759540822,0.05640427,57472.0,57471.0,0.014]
[1723759542422,0.07640427,57472.0,57471.0,0.014]
[1723759542722,0.05640427,57472.0,57471.0,0.014]
[1723759542919,0.09640427,57472.0,57471.0,0.014]
[1723759543124,0.05640427,57472.0,57471.0,0.014]
[1723759543422,0.043489,57471.0,57462.0,0.3608]
[1723759543628,0.94491627,57472.0,57462.0,0.3608]
[1723759543629,0.043495,57463.0,57462.0,0.3608]
[1723759544718,0.044495,57463.0,57462.0,0.3678]
[1723759544920,0.05565367,57463.0,57462.0,0.3768]
[1723759545317,1.00773367,57463.0,57462.0,0.3768]
[1723759545629,0.57773367,57463.0,57462.0,0.3768]
[1723759545922,0.97773367,57463.0,57462.0,0.016]
[1723759546426,0.38395867,57463.0,57452.0,0.1654]
[1723759546628,0.38395867,57463.0,57444.0,0.0509976]
[1723759546629,0.3608,57453.0,57444.0,0.0509976]
[1723759546930,0.404303,57453.0,57444.0,0.0509976]
[1723759547428,0.404303,57453.0,57443.0,0.0509976]
[1723759547821,0.404303,57453.0,57444.0,0.0509976]
[1723759548021,0.405303,57453.0,57446.0,0.043508]
[1723759548319,0.405303,57453.0,57441.0,0.3176]
[1723759548320,0.406303,57453.0,57441.0,0.3176]
[1723759548515,0.406303,57453.0,57445.0,0.043509]
[1723759549628,0.3628,57453.0,57445.0,0.043509]
[1723759549829,0.4928,57453.0,57445.0,0.043509]
[1723759550623,0.50371548,57453.0,57446.0,0.043508]
[1723759551026,0.50371548,57453.0,57448.0,0.404306]
[1723759551328,0.50271548,57453.0,57448.0,0.404306]
[1723759551625,0.50271548,57453.0,57449.0,0.043506]
[1723759551827,0.50271548,57453.0,57448.0,0.3608]
[1723759552030,0.50271548,57453.0,57446.0,0.043508]
[1723759552523,0.50271548,57453.0,57448.0,0.043506]
[1723759552724,0.50271548,57453.0,57441.0,0.3176]
[1723759553028,0.50271548,57453.0,57449.0,0.043506]
[1723759554732,0.50271548,57453.0,57442.0,0.3608]
[1723759555120,0.50271548,57453.0,57446.0,0.043508]
[1723759555824,0.52271548,57453.0,57446.0,0.043508]
[1723759556026,0.50271548,57453.0,57446.0,0.043508]
[1723759556626,0.14191548,57453.0,57446.0,0.043508]
[1723759557021,0.3608,57452.0,57446.0,0.043508]
[1723759557225,0.4908,57452.0,57446.0,0.043508]
[1723759558236,1.066464,57452.0,57441.0,0.32845359]
[1723759558530,1.02296,57452.0,57441.0,0.32845359]
[1723759558834,0.3608,57446.0,57441.0,0.32845359]
[1723759559131,0.4708,57446.0,57442.0,0.043511]
[1723759559342,0.0001442,57445.0,57441.0,0.3176]
[1723759559526,0.1301442,57445.0,57441.0,0.3176]
[1723759559829,0.1736532,57445.0,57441.0,0.3176]
[1723759560042,0.1301442,57445.0,57441.0,0.361112]
[1723759560231,0.1301442,57445.0,57442.0,0.043511]
[1723759560738,0.1311442,57445.0,57442.0,0.043511]
[1723759561526,0.1311442,57445.0,57441.0,0.3176]
[1723759561527,0.14330167,57445.0,57441.0,0.3176]
[1723759561726,0.3608,57443.0,57437.0,0.043515]
[1723759561925,0.3608,57438.0,57437.0,0.043515]
[1723759562227,0.4908,57438.0,57437.0,0.043515]
[1723759563237,0.7312442,57438.0,57432.0,0.2126976]
[1723759563442,0.404318,57433.0,57426.0,0.05095964]
[1723759563630,0.404318,57433.0,57418.0,0.09447555]
[1723759563631,0.3608,57427.0,57418.0,0.09447555]
[1723759563829,0.3608,57427.0,57417.0,0.0679968]
[1723759563830,0.043526,57423.0,57416.0,0.043531]
[1723759564135,0.0001442,57422.0,57416.0,0.09447755]
[1723759564334,0.043528,57420.0,57415.0,0.22352147]
[1723759564529,0.11,57420.0,57416.0,0.043531]
[1723759564834,0.11,57420.0,57417.0,0.04353]
[1723759565331,0.11,57420.0,57415.0,0.17257492]
[1723759565332,0.153528,57420.0,57415.0,0.1617]
[1723759566132,0.11,57420.0,57419.0,0.043529]
[1723759566929,0.11,57420.0,57415.0,0.1617]
[1723759566930,0.111,57420.0,57415.0,0.205232]
[1723759567136,0.043529,57418.0,57415.0,0.1617]
[1723759567338,0.153529,57418.0,57415.0,0.1617]
[1723759567837,0.043531,57416.0,57414.0,0.00018004]
[1723759568040,0.4708,57416.0,57414.0,0.00018004]
[1723759568242,0.043532,57415.0,57414.0,0.00018004]
[1723759568537,0.163532,57415.0,57414.0,0.00018004]
[1723759569137,1.04252,57415.0,57405.0,0.1642]
[1723759569343,0.2403,57406.0,57405.0,0.1642]
[1723759569541,0.3603,57406.0,57405.0,0.1642]
[1723759570128,0.36048571,57406.0,57405.0,0.1642]
[1723759570546,0.36148571,57406.0,57405.0,0.1642]
[1723759570732,0.12118571,57406.0,57405.0,0.1642]
[1723759572133,0.06021299,57406.0,57405.0,0.1642]
[1723759572640,0.06121299,57406.0,57405.0,0.1642]
[1723759574851,0.06121299,57406.0,57405.0,0.525]
[1723759575042,0.18,57415.0,57405.0,1.4476]
[1723759575338,0.13,57415.0,57414.0,0.404332]
[1723759575541,0.3608,57422.0,57421.0,0.043527]
[1723759575739,0.3608,57430.0,57429.0,0.043521]
[1723759575948,0.46093853,57430.0,57429.0,0.043521]
[1723759576135,0.4808,57439.0,57438.0,0.043514]
[1723759576136,0.12,57439.0,57438.0,0.043514]
[1723759576545,0.01119793,57440.0,57438.0,0.806094]
[1723759576740,0.00026121,57444.0,57443.0,0.04351]
[1723759577043,0.13026121,57444.0,57443.0,0.04351]
[1723759577545,0.13026121,57444.0,57443.0,0.40431]
[1723759578144,0.16,57453.0,57452.0,0.043504]
[1723759578343,0.05,57453.0,57452.0,0.7608]
[1723759578539,0.05,57453.0,57452.0,1.326464]
[1723759578843,0.05,57453.0,57452.0,1.484464]
[1723759579648,0.05,57453.0,57452.0,1.084464]
[1723759580031,0.05,57453.0,57452.0,1.484464]
[1723759580237,0.05,57453.0,57452.0,1.084464]
[1723759580433,0.064,57453.0,57452.0,1.085464]
[1723759580738,0.078,57453.0,57452.0,1.086464]
[1723759581648,0.078,57453.0,57452.0,1.486464]
[1723759581833,0.4388,57453.0,57447.0,0.00026121]
[1723759582035,0.3608,57448.0,57447.0,0.00026121]
[1723759582242,0.4708,57448.0,57447.0,0.00026121]
[1723759583139,0.4708,57448.0,57447.0,0.00126121]
[1723759583448,0.4708,57448.0,57447.0,0.00226121]
[1723759583449,0.11,57448.0,57447.0,0.00226121]
[1723759583741,0.4708,57448.0,57447.0,0.00226121]
[1723759583938,0.4938,57448.0,57447.0,0.00226121]
[1723759584139,1.016,57448.0,57439.0,0.404313]
[1723759584345,0.4938,57448.0,57439.0,0.404313]
[1723759584546,0.4938,57448.0,57440.0,0.043512]
[1723759585452,0.4938,57448.0,57439.0,0.3608]
[1723759585946,0.4988,57448.0,57442.0,0.043511]
[1723759586149,0.4988,57448.0,57439.0,0.3608]
[1723759586344,0.043508,57447.0,57439.0,0.3618]
[1723759586537,0.153508,57447.0,57439.0,0.3618]
[1723759586953,0.043508,57446.0,57439.0,0.3618]
[1723759587138,0.153508,57446.0,57439.0,0.3618]
[1723759587345,0.153508,57446.0,57439.0,0.3608]
[1723759587550,0.043509,57445.0,57439.0,0.3618]
[1723759587749,0.043512,57441.0,57439.0,0.001]
[1723759587944,0.163512,57441.0,57439.0,0.001]
[1723759588153,0.88308,57440.0,57425.0,0.043523]
[1723759588339,0.3608,57433.0,57425.0,0.043523]
[1723759588649,0.4808,57433.0,57425.0,0.043523]
[1723759588949,0.4808,57433.0,57418.0,0.3205]
[1723759588950,0.3608,57426.0,57420.0,0.043527]
[1723759589149,0.4808,57426.0,57420.0,0.043527]
[1723759589641,0.4808,57426.0,57417.0,0.1551]
[1723759589842,0.12,57426.0,57425.0,0.001]
[1723759590450,0.121,57426.0,57425.0,0.001]
[1723759590951,0.122,57426.0,57418.0,0.043529]
[1723759591258,0.122,57426.0,57417.0,0.1551]
[1723759591846,0.122,57426.0,57422.0,0.043526]
[1723759592253,0.128,57426.0,57422.0,0.043526]
[1723759592548,0.134,57426.0,57425.0,0.001]
[1723759593146,0.127,57426.0,57422.0,0.043526]
[1723759593857,0.131,57426.0,57425.0,0.001]
[1723759594250,0.134,57426.0,57425.0,0.001]
[1723759595356,0.134,57426.0,57415.0,0.3608]
[1723759595357,0.043527,57421.0,57415.0,0.3608]
[1723759595652,0.12,57421.0,57420.0,0.3608]
[1723759595852,0.01,57426.0,57425.0,0.043524]
[1723759595853,0.007,57426.0,57425.0,0.043524]
[1723759596152,0.044,57426.0,57425.0,0.044524]
[1723759596547,0.03,57426.0,57425.0,0.043524]
[1723759597157,0.03,57426.0,57425.0,0.044524]
[1723759597158,0.037,57426.0,57425.0,0.044524]
[1723759597452,0.044,57426.0,57425.0,0.044524]
[1723759599050,0.044,57426.0,57425.0,0.405324]
[1723759602058,0.00026121,57429.0,57428.0,0.043522]
[1723759602259,0.12026121,57429.0,57428.0,0.043522]
[1723759603364,0.14026121,57429.0,57428.0,0.044522]
[1723759604657,0.14026121,57429.0,57428.0,0.05568473]
[1723759606555,0.17,57438.0,57428.0,1.12808473]
[1723759606756,0.1664,57457.0,57438.0,0.043514]
[1723759606952,0.1664,57457.0,57454.0,0.043502]
[1723759607449,0.1864,57457.0,57454.0,0.043502]
[1723759608154,0.1864,57457.0,57453.0,0.3608]
[1723759608354,0.2299,57457.0,57453.0,0.3608]
[1723759608748,0.1864,57457.0,57453.0,0.3608]
[1723759608965,0.1924,57457.0,57453.0,0.3608]
[1723759609353,0.1864,57457.0,57450.0,0.00026121]
[1723759609553,0.3608,57452.0,57437.0,0.404315]
[1723759609751,0.043509,57445.0,57438.0,0.043514]
[1723759609953,0.153509,57445.0,57438.0,0.043514]
[1723759610361,0.153509,57445.0,57437.0,0.3608]
[1723759611164,0.11,57445.0,57437.0,0.3608]
[1723759611557,0.11,57445.0,57437.0,0.41172237]
[1723759611758,0.11,57445.0,57443.0,0.04351]
[1723759611955,0.11,57445.0,57438.0,0.05092237]
[1723759611956,0.06647871,57445.0,57439.0,0.05092237]
[1723759612166,0.06647871,57445.0,57444.0,0.04351]
[1723759612462,0.07247871,57445.0,57444.0,0.04351]
[1723759613060,0.47678771,57445.0,57443.0,0.001]
[1723759613253,0.48478771,57445.0,57443.0,0.001]
[1723759613452,0.47878771,57445.0,57440.0,0.043513]
[1723759613648,0.48478771,57445.0,57444.0,0.001]
[1723759614858,0.48478771,57445.0,57437.0,0.001]
[1723759614859,0.043514,57438.0,57437.0,0.001]
[1723759615063,0.043517,57434.0,57428.0,0.043521]
[1723759615268,0.3608,57433.0,57428.0,0.043521]
[1723759615562,0.4808,57433.0,57428.0,0.043521]
[1723759616559,0.4808,57433.0,57425.0,0.05092237]
[1723759616560,0.043522,57428.0,57425.0,0.05092237]
[1723759616762,0.404323,57427.0,57421.0,0.05092237]
[1723759616962,0.534323,57427.0,57420.0,0.58092237]
[1723759617867,0.173523,57427.0,57424.0,0.05092237]
[1723759618059,0.13,57427.0,57423.0,0.05092237]
[1723759619062,0.13,57427.0,57423.0,0.09444737]
[1723759619456,0.13,57427.0,57420.0,0.53236]
[1723759619457,0.13,57427.0,57426.0,0.043523]
[1723759619656,0.133,57427.0,57426.0,0.043523]
[1723759619956,0.136,57427.0,57426.0,0.45524537]
[1723759620156,0.136,57427.0,57426.0,0.404323]
[1723759620757,0.136,57427.0,57426.0,0.45636043]
[1723759620758,0.14,57427.0,57426.0,0.45636043]
[1723759621157,1.466723,57427.0,57426.0,0.001]
[1723759621356,1.466723,57427.0,57426.0,0.002]
[1723759621357,0.5048,57427.0,57426.0,0.002]
[1723759621759,0.144,57427.0,57426.0,0.002]
[1723759622264,0.144,57427.0,57426.0,0.045523]
[1723759623955,0.144,57427.0,57426.0,0.002]
[1723759626561,0.144,57427.0,57426.0,0.406323]
[1723759626562,0.14273879,57427.0,57426.0,0.406323]
[1723759626759,0.14273879,57427.0,57426.0,0.37357331]
[1723759626958,0.14273879,57427.0,57426.0,0.42463406]
[1723759627159,0.14273879,57427.0,57426.0,0.424634]
[1723759627365,0.14273879,57427.0,57426.0,0.37357331]
[1723759627765,0.14273879,57427.0,57426.0,0.4246336]
[1723759628772,0.14273879,57427.0,57426.0,0.41386029]
[1723759629258,0.18626179,57427.0,57426.0,0.002]
[1723759629959,0.14273879,57427.0,57426.0,0.045523]
[1723759632464,0.14273879,57427.0,57426.0,0.002]
[1723759632664,0.18626179,57427.0,57426.0,0.002]
[1723759636866,0.14273879,57427.0,57426.0,0.002]
[1723759638464,0.14273879,57427.0,57426.0,0.05306029]
[1723759639267,0.14273879,57427.0,57426.0,0.002]
[1723759639472,0.14273879,57427.0,57426.0,0.05306029]
[1723759640669,0.14273879,57427.0,57426.0,0.002]
[1723759645366,0.14173879,57427.0,57426.0,0.002]
[1723759647864,0.14173879,57427.0,57426.0,0.045523]
[1723759648972,0.14173879,57427.0,57426.0,0.044523]
[1723759649168,0.14173879,57427.0,57426.0,0.045523]
[1723759649881,0.14173879,57427.0,57426.0,0.002]
[1723759657577,0.14173879,57427.0,57426.0,0.045523]
[1723759658887,0.14173879,57427.0,57426.0,0.044523]
[1723759658888,0.13473879,57427.0,57426.0,0.044523]
[1723759659180,0.14073879,57427.0,57426.0,0.045523]
[1723759659578,2.1e-07,57432.0,57431.0,0.08704]
[1723759659780,0.37169283,57454.0,57446.0,0.043508]
[1723759659980,0.54519483,57454.0,57449.0,0.05113248]
[1723759660184,0.54519483,57454.0,57450.0,0.05113248]
[1723759660185,0.2408,57453.0,57450.0,0.05113248]
[1723759660478,0.2408,57453.0,57443.0,0.05113248]
[1723759660479,0.043507,57448.0,57443.0,0.05113248]
[1723759660678,0.12,57448.0,57445.0,0.043509]
[1723759660884,0.12,57448.0,57445.0,0.11168564]
[1723759661075,0.12,57448.0,57447.0,0.06817664]
[1723759661283,0.12,57448.0,57446.0,0.06817664]
[1723759661474,0.12,57448.0,57443.0,0.01071023]
[1723759661475,0.12,57448.0,57447.0,0.645107]
[1723759661672,0.12,57448.0,57447.0,0.77763753]
[1723759661871,0.12,57448.0,57447.0,1.69983753]
[1723759662080,0.12,57448.0,57447.0,1.80209027]
[1723759662286,2.1e-07,57451.0,57450.0,0.043505]
[1723759662486,2.1e-07,57451.0,57450.0,1.41131895]
[1723759662687,2.1e-07,57451.0,57450.0,1.54383035]
[1723759663183,0.08676263,57484.0,57450.0,1.54383035]
[1723759663184,0.3608,57483.0,57450.0,1.5855114]
[1723759663372,0.3608,57483.0,57477.0,0.043484]
[1723759663577,0.37157567,57481.0,57471.0,0.404289]
[1723759663777,0.49157567,57481.0,57471.0,0.404289]
[1723759663972,0.4808,57481.0,57471.0,0.404289]
[1723759664192,0.12,57481.0,57472.0,0.2408]
[1723759664485,0.12,57481.0,57479.0,0.3608]
[1723759665588,0.137,57481.0,57479.0,0.3608]
[1723759665883,0.129,57481.0,57479.0,0.3608]
[1723759666097,0.135,57481.0,57480.0,0.52192]
[1723759666588,0.135,57481.0,57480.0,0.92192]
[1723759668388,0.126,57481.0,57480.0,0.92192]
[1723759668689,0.137,57481.0,57480.0,0.92392]
[1723759670789,0.07481,57481.0,57480.0,0.92392]
[1723759671292,0.017,57481.0,57480.0,0.92392]
[1723759671683,0.009,57481.0,57480.0,0.92292]
[1723759671888,0.015,57481.0,57480.0,0.92392]
[1723759672088,0.043465,57503.0,57480.0,0.402]
[1723759672283,0.12,57498.0,57493.0,0.3608]
[1723759672785,0.12,57498.0,57494.0,0.043472]
[1723759672983,0.12,57498.0,57495.0,0.043471]
[1723759673186,0.12,57498.0,57496.0,0.04347]
[1723759673580,0.127,57498.0,57496.0,0.04347]
[1723759674791,0.128,57498.0,57496.0,0.04347]
[1723759675091,0.122,57498.0,57496.0,0.04447]
[1723759675294,0.122,57498.0,57496.0,0.04547]
[1723759676189,0.122,57498.0,57496.0,0.002]
[1723759677194,0.165469,57498.0,57496.0,0.002]
[1723759679594,0.04347,57497.0,57496.0,0.002]
[1723759679790,0.33837,57497.0,57496.0,0.002]
[1723759680588,0.13,57497.0,57496.0,0.002]
[1723759681494,0.13,57497.0,57496.0,0.0131426]
[1723759681689,0.131,57497.0,57496.0,0.0131426]
[1723759681894,0.131,57497.0,57496.0,0.0556126]
[1723759682094,0.132,57497.0,57496.0,0.2974126]
[1723759682591,0.132,57497.0,57496.0,0.0566126]
[1723759682990,0.132,57497.0,57496.0,0.0131426]
[1723759685283,0.132,57497.0,57496.0,0.0566126]
[1723759685483,0.132,57497.0,57496.0,0.9391726]
[1723759686200,0.132,57497.0,57496.0,0.4174126]
[1723759686895,0.132,57497.0,57496.0,0.3739426]
[1723759689198,0.132,57497.0,57496.0,0.3628]
[1723759689606,0.07112939,57497.0,57496.0,0.3628]
[1723759689797,0.5218,57496.0,57478.0,0.05024116]
[1723759689992,0.3608,57483.0,57475.0,0.05024116]
[1723759690327,0.1582,57482.0,57477.0,0.043484]
[1723759690601,0.2882,57482.0,57479.0,0.043483]
[1723759691891,0.2902,57482.0,57479.0,0.044483]
[1723759692091,0.2902,57482.0,57479.0,0.001]
[1723759692492,0.2902,57482.0,57479.0,0.002]
[1723759692493,0.134,57482.0,57479.0,0.002]
[1723759693106,0.134,57482.0,57481.0,0.043482]
[1723759694209,0.134,57482.0,57479.0,0.002]
[1723759694407,0.134,57482.0,57479.0,0.08678064]
[1723759694713,0.146,57482.0,57481.0,0.001]
[1723759694901,0.144,57482.0,57481.0,0.001]
[1723759695111,0.158,57482.0,57481.0,0.002]
[1723759695610,0.158,57482.0,57481.0,0.001]
[1723759695910,0.52192,57481.0,57476.0,0.05089481]
[1723759696112,0.52192,57481.0,57470.0,0.05090186]
[1723759696113,0.043486,57476.0,57470.0,0.05090186]
[1723759696313,0.6016,57471.0,57468.0,0.05090186]
[1723759696516,0.1705,57470.0,57465.0,0.05090186]
[1723759696810,0.043493,57466.0,57465.0,0.05090186]
[1723759697006,0.12,57466.0,57465.0,0.05090186]
[1723759697208,0.12,57466.0,57465.0,0.043494]
[1723759697407,0.12,57466.0,57465.0,0.11135374]
[1723759698105,0.12,57466.0,57464.0,0.06785974]
[1723759698306,0.12,57466.0,57465.0,0.001]
[1723759698511,0.134,57466.0,57465.0,0.001]
[1723759699106,0.148,57466.0,57465.0,0.002]
[1723759700111,0.148,57466.0,57465.0,0.045494]
[1723759700411,0.148,57466.0,57465.0,0.09626515]
[1723759700807,0.148,57466.0,57465.0,0.045494]
[1723759701015,0.191493,57466.0,57465.0,0.05278089]
[1723759701225,0.191493,57466.0,57465.0,0.002]
[1723759701415,0.148,57466.0,57465.0,0.002]
[1723759702222,0.191493,57466.0,57465.0,0.002]
[1723759704122,0.148,57466.0,57465.0,0.01301927]
[1723759704419,0.10449556,57466.0,57465.0,0.002]
[1723759705016,0.10449556,57466.0,57465.0,0.01280466]
[1723759705919,0.10449556,57466.0,57465.0,0.002]
[1723759707513,0.21449556,57466.0,57460.0,0.00038305]
[1723759707722,0.043497,57461.0,57460.0,0.00038305]
[1723759708025,0.153497,57461.0,57460.0,0.00038305]
[1723759708622,0.11,57461.0,57460.0,0.00038305]
[1723759708921,0.11,57461.0,57460.0,0.00138305]
[1723759709120,0.122,57461.0,57460.0,0.00238305]
[1723759710916,0.122,57461.0,57460.0,0.00138305]
[1723759711116,0.134,57461.0,57460.0,0.00238305]
[1723759712621,0.134,57461.0,57460.0,0.04588105]
[1723759712823,0.19,57470.0,57466.0,0.043493]
[1723759713123,0.04,57470.0,57466.0,0.404293]
[1723759713332,0.04,57470.0,57460.0,0.40668005]
[1723759713525,0.08349,57470.0,57461.0,0.043497]
[1723759713925,0.08349,57470.0,57462.0,0.043496]
[1723759714226,0.11149,57470.0,57466.0,0.002]
[1723759714424,0.068,57470.0,57466.0,0.002]
[1723759714731,0.068,57470.0,57466.0,0.3628]
[1723759715030,0.067,57470.0,57466.0,0.001]
[1723759715329,0.067,57470.0,57465.0,0.043493]
[1723759715330,0.053,57470.0,57465.0,0.043493]
[1723759715628,0.067,57470.0,57466.0,0.001]
[1723759716131,0.043492,57467.0,57466.0,0.001]
[1723759716437,0.163492,57467.0,57466.0,0.001]
[1723759717835,0.163492,57467.0,57465.0,0.001]
[1723759717836,0.043493,57466.0,57465.0,0.001]
[1723759718027,0.163493,57466.0,57465.0,0.001]
[1723759718226,0.043494,57465.0,57460.0,0.00038305]
[1723759718434,0.153494,57465.0,57460.0,0.00038305]
[1723759719234,0.11,57465.0,57460.0,0.00038305]
[1723759720327,0.11,57465.0,57460.0,0.05116394]
[1723759720725,0.11,57465.0,57460.0,0.21066394]